Cogmind - Beta 16.1 @@@ ROGUE MODE // 2026.02.26 @ 17:31:41 Player: Ceorik Result: Destroyed by S-43 Plague with Heavy Machine Gun Performance ------------- Evolutions (8) 4000 Regions Visited (14) 2800 Robots Destroyed (132) 660 Value Destroyed (6462) 6462 Prototype IDs (42) 840 Alien Tech Used (0) 0 Bonus (5422) 5422 TOTAL SCORE: 20184 Bonus ------- High Alert Combat Kills 163 Follower Combat Kills 1686 Registered with UFD 300 Met Optimus in HQ 500 Built Enhanced Grunts 300 Met R17 at Cetus 500 Met R17 at Research 2000 Friendly Fire -27 Cogmind --------- Core Integrity 0/1450 Matter 170/300 Energy 99/100 System Corruption 49% Temperature Cool (9) Movement Core (50) Location -2/Research Parts ------- > --- POWER (4) -------- (None) > --- PROPULSION (4) --- (None) > --- UTILITY (12) ----- (None) > --- WEAPON (3) ------- (None) > --- INVENTORY (5) ---- Light Antimatter Reactor Advanced Heat Sink Railgun Enhanced Hardcell Cannon Improved Plasma Cutter Peak State ------------ > --- POWER ------------ Particle Reactor Particle Reactor Particle Reactor Light Particle Reactor > --- PROPULSION ------- Improved Heavy Treads Improved Heavy Treads > --- UTILITY ---------- Advanced Heat Sink Advanced Heat Sink Advanced Heat Sink Advanced Cooling System Improved Coolant Injector Large Storage Unit Improved Energy Well Advanced Sensor Array Advanced Signal Interpreter Improved Transmission Jammer Improved Force Field Advanced Force Field > --- WEAPON ----------- Advanced Plasma Rifle Nova Cannon Vibroblade > --- INVENTORY -------- Micro Antimatter Reactor Light Quantum Reactor Advanced Heavy Treads Advanced Heavy Siege Treads Improved Medium Armor Plating Improved Force Field HERF Cannon HERF Cannon HERF Cannon Fusion Bomb Launcher Tactical Quantum Warhead Improved Plasma Cutter [Rating: 160] Favorites ----------- Power Particle Reactor Engine Light Deuterium Engine Power Core Improved Fusion Compressor Reactor Particle Reactor Propulsion Centrium Heavy Treads Treads Centrium Heavy Treads Leg Cargo Legs Wheel Wheel Hover Unit Gravmag System Utility Large Storage Unit Device Advanced Heat Sink Storage Large Storage Unit Processor Improved Signal Interpreter Hackware Improved System Shield Protection Centrium Medium Armor Plating Weapon Advanced Variable Charge Gun Energy Gun Advanced Variable Charge Gun Energy Cannon Nova Cannon Ballistic Gun Advanced KE Penetrator Launcher Mini Grenade Launcher Impact Weapon Makeshift Hammer Slashing Weapon Vibroblade Build | -11 -10 -10 -8 -8 -6 -6 -6 -5 -4 -4 -4 -3 -3 -2 ------- Run | Yrd Mat Sub Rec Scr Fac Ext Cet Fac Fac Upp Upp Res Tes Res Slots Evolved 16 | . . . . . 8 . . 2 2 . . 2 . 2 Power 3 | . . . . . . . . 1 . . . 1 . 1 Propulsion 2 | . . . . . 2 . . . . . . . . . Utility 10 | . . . . . 5 . . 1 2 . . 1 . 1 Weapon 1 | . . . . . 1 . . . . . . . . . Parts Attached 163 | 7 6 7 3 2 19 16 17 9 8 2 4 13 17 33 Power 25 | 1 1 1 1 1 . 2 2 1 . . 1 3 1 10 Engine 7 | 1 . 1 1 1 . 1 . 1 . . . . . 1 Core 4 | . 1 . . . . 1 1 . . . 1 . . . Reactor 14 | . . . . . . . 1 . . . . 3 1 9 Propulsion 26 | 2 . 4 . . 4 7 3 . 2 . . 2 . 2 Treads 11 | 2 . . . . . 2 3 . . . . 2 . 2 Leg 9 | . . 1 . . 3 5 . . . . . . . . Wheel 5 | . . 3 . . . . . . 2 . . . . . Hover 1 | . . . . . 1 . . . . . . . . . Flight . | . . . . . . . . . . . . . . . Utility 78 | 2 2 1 2 1 11 4 9 8 3 2 3 5 13 12 Device 42 | 1 . . . . 8 2 4 6 2 2 3 2 8 4 Storage 7 | 1 2 . . . . . . . . . . 1 2 1 Processor 11 | . . 1 . 1 1 . 2 1 . . . 1 1 3 Hackware 4 | . . . . . . . . 1 1 . . . . 2 Protection 14 | . . . 2 . 2 2 3 . . . . 1 2 2 Artifact . | . . . . . . . . . . . . . . . Weapon 34 | 2 3 1 . . 4 3 3 . 3 . . 3 3 9 Energy Gun 7 | 1 . . . . . . 1 . 2 . . 2 . 1 Energy Cannon 6 | . . . . . . . . . . . . . 2 4 Ballistic Gun 8 | 1 . . . . . 1 2 . 1 . . . . 3 Ballistic Cannon . | . . . . . . . . . . . . . . . Launcher 5 | . 2 . . . 1 . . . . . . . 1 1 Special Weapon . | . . . . . . . . . . . . . . . Impact Weapon 3 | . 1 1 . . 1 . . . . . . . . . Slashing Weapon 5 | . . . . . 2 2 . . . . . 1 . . Piercing Weapon . | . . . . . . . . . . . . . . . Special Melee Weapon . | . . . . . . . . . . . . . . . Unidentified Prototypes 15 | . . . . . 2 . 4 . 1 . . 1 6 1 Corrupted Parts 2 | . . . . . 1 . . . . . . . . 1 System Corruption 4 | . . . . . 3 . . . . . . . . 1 Parts Lost 58 | . . 3 . . 3 5 5 . 1 . 3 2 3 33 Power 15 | . . 1 . . . 1 1 . 1 . 1 . . 10 Propulsion 6 | . . 1 . . . 1 . . . . . . . 4 Utility 29 | . . . . . 2 2 4 . . . 2 2 3 14 Weapon 8 | . . 1 . . 1 1 . . . . . . . 5 Highest Loss Streak 9 | . . 3 . . 1 2 5 . 1 . 3 1 1 9 To Critical Strikes 1 | . . . . . . . . . . . . . . 1 Average Backups 12 | 1 8 14 14 13 10 12 11 13 13 14 13 14 12 11 Power 1 | . 1 1 2 . 1 1 1 1 . 1 . . 2 1 Propulsion 1 | . 1 2 2 . . . 1 1 2 2 2 2 3 1 Utility 5 | . 2 6 6 7 6 7 4 5 4 7 7 6 1 2 Weapon 3 | . 2 3 3 3 2 1 1 4 4 3 3 3 4 5 Tool/Special . | . . . . . . . . . . . . . . . Unused Backups 30 | . 2 2 . 12 1 2 1 . 1 2 . 2 1 4 Power 4 | . . 1 . 1 . 1 1 . . . . . . . Propulsion 4 | . 1 . . 1 . . . . . . . . . 2 Utility 13 | . . 1 . 7 . 1 . . . 2 . 1 1 . Weapon 8 | . 1 . . 3 1 . . . 1 . . 1 . 1 Tool/Special 1 | . . . . . . . . . . . . . . 1 Average Slot Usage (%) 87 | . 100 94 82 88 83 89 86 80 85 89 80 78 85 85 Engine 4 | . 10 11 11 11 5 3 . 1 3 . . . . . Core 1 | . 3 1 . . . 2 . . . 5 5 3 . . Reactor 5 | . . . . . . . 5 5 5 5 5 7 14 16 Treads 8 | . 28 13 . . . 1 7 11 9 10 10 9 9 6 Leg 4 | . . 1 11 11 8 16 11 . . . . . . . Wheel 1 | . . 10 . . . . . . . . . . . . Device 16 | . 14 . . . 21 18 8 15 25 30 22 23 28 26 Storage 8 | . 14 13 11 11 5 6 6 5 5 5 5 7 9 7 Processor 8 | . . 13 11 11 11 11 5 5 5 5 5 4 . 11 Protection 8 | . . . 16 22 11 12 20 12 10 5 5 3 7 1 Energy Gun 4 | . 14 4 . . . . 3 5 9 10 10 8 4 2 Ballistic Gun 1 | . . . . . . . 3 11 5 5 5 . . 1 Launcher 3 | . 5 12 11 11 3 . . . . . . . . . Impact Weapon 4 | . 7 10 11 11 6 10 8 . . . . . . . Slashing Weapon 1 | . . . . . 4 3 2 . . . . 3 4 3 Peak Build Rating 160 | 7 11 28 35 43 81 86 111 126 136 137 141 149 144 160 Average Rating 87 | 5 9 12 33 38 70 78 85 119 130 133 135 139 139 146 On Entrance 80 | . 7 11 28 35 43 68 83 111 126 135 137 138 142 143 Avg Prop Armor Cover (%) 11 | . . 15 . . 3 5 2 . 5 . . . . 11 Naked Turns 33 | . . . . . . . . . . . . . . 33 Heaviest Build 147 | 12 31 30 35 37 56 77 85 91 93 93 97 123 140 147 Greatest Support 160 | 40 40 55 55 55 85 100 160 160 160 160 160 160 150 150 Greatest Overweight (x) 3 | . . 2 . . 1 . . . 3 . . 1 . 1 Average Overweight (x) . | . . 1 . . . . . . . . . . . . Largest Inventory Capacity 25 | 8 15 15 15 15 15 15 15 15 15 15 15 15 15 25 Average Capacity 14 | 7 9 15 15 15 15 15 15 15 15 15 15 15 15 14 Most Carried 15 | 5 11 15 15 15 15 15 15 15 15 15 15 15 15 15 Average Carried 13 | 1 8 14 13 14 13 14 13 14 14 14 13 14 13 13 Final Capacity 15 | 8 15 15 15 15 15 15 15 15 15 15 15 15 15 5 Final Carried 15 | 5 11 15 14 15 14 15 15 15 15 15 15 15 15 5 Class Distribution -------------------- 23% | Mutant 15% | Commander-Mutant 13% | Scavenger-Bomber 11% | Scavenger-Mutant 11% | Commander-Gladiator 10% | Generator-Mutant 5% | Bomber 3% | Commander-Bomber 3% | Derelict-Gladiator Dominant Class ---------------- Mutant | -10/Materials Mutant | -10/Subcaves Commander-Mutant | -8/Recycling Commander-Mutant | -8/Scraptown Commander-Gladiator | -6/Factory Commander-Gladiator | -6/Extension Commander-Mutant | -6/Cetus Commander-Bomber | -5/Factory Scavenger-Bomber | -4/Factory Scavenger-Bomber | -4/Upper Caves Bomber | -4/Upper Caves Mutant | -3/Research Scavenger-Mutant | -3/Testing Generator-Mutant | -2/Research Resources | -11 -10 -10 -8 -8 -6 -6 -6 -5 -4 -4 -4 -3 -3 -2 ----------- Run | Yrd Mat Sub Rec Scr Fac Ext Cet Fac Fac Upp Upp Res Tes Res Matter Collected 4380 | 276 140 215 30 20 293 362 237 673 320 191 197 421 195 810 Remotely . | . . . . . . . . . . . . . . . Salvage Created 6413 | 133 265 350 25 . 212 1416 229 207 377 . 139 259 1032 1769 Parts 299 | 8 18 21 . . 9 47 12 8 16 . 5 11 52 92 Haulers Intercepted . | . . . . . . . . . . . . . . . Recyclers Shooed . | . . . . . . . . . . . . . . . Parts Field Recycled . | . . . . . . . . . . . . . . . Retrieved Matter . | . . . . . . . . . . . . . . . Parts Self-Destructed 24 | . . 8 . . . . . . . 11 5 . . . Prevented 1 | . . . . . . . . . . . 1 . . . Parts Restored . | . . . . . . . . . . . . . . . Kills | -11 -10 -10 -8 -8 -6 -6 -6 -5 -4 -4 -4 -3 -3 -2 ------- Run | Yrd Mat Sub Rec Scr Fac Ext Cet Fac Fac Upp Upp Res Tes Res Combat Hostiles Destroyed 104 | . 10 15 1 . 4 17 4 1 5 . 2 6 14 25 Melee 24 | . 2 2 . . 2 10 1 . . . . 1 5 1 Guns 18 | . . . . . . . 2 1 4 . 2 . 4 5 Cannons 14 | . . . . . . . . . . . . . 4 10 AOE 25 | . 5 9 . . . . . . 1 . . 5 . 5 Classes Destroyed 18 | 2 4 1 1 . 2 6 . . 2 . . . . . Worker 8 | . 1 . . . . . . . . . . . . 7 Builder 5 | . . . . . . 1 . . . . . 1 . 3 Tunneler 2 | 2 . . . . . . . . . . . . . . Recycler 5 | 1 . . . . . 2 . 1 . . . . . 1 Mechanic 1 | . . . . . . . . . 1 . . . . . Operator 2 | . . . . . . 1 . . . . . 1 . . Watcher 5 | . 3 . . . . 1 1 . . . . . . . Swarmer 21 | . 5 4 . . . . . . . . . 5 . 7 Grunt 28 | . 5 2 . . 1 7 . . 1 . . 1 7 4 Brawler 2 | . . . . . . 1 . . . . . . 1 . Sentry 11 | . . . . . 2 5 . 1 1 . . . . 2 Demolisher 1 | . . . 1 . . . . . . . . . . . Specialist 1 | . . . . . . 1 . . . . . . . . Hunter 7 | . . . . . . 2 . . . . 2 . . 3 Programmer 18 | . . . . . 1 . . . 2 . . . 6 9 Behemoth 1 | . . . . . . 1 . . . . . . . . Cetus Guard 4 | . . . . . . . 4 . . . . . . . Subdweller 9 | . . 9 . . . . . . . . . . . . Scrapoid 1 | . . . . . . . . . 1 . . . . . Best Kill Streak 8 | 2 4 8 1 . 2 4 3 1 2 . 1 5 4 8 Combat Bots Only 8 | . 3 8 1 . 2 4 2 1 1 . 1 5 4 5 Max Kills in Single Turn 5 | 1 3 2 1 . 1 1 2 1 2 . 1 5 1 5 Gunslinging . | . . . . . . . . . . . . . . . Exploded 5 | . 2 2 . . . . . . 1 . . 5 . 4 Melee 1 | . 1 1 . . 1 1 1 . . . . 1 1 1 Uniques/NPCs Destroyed . | . . . . . . . . . . . . . . . Combat | -11 -10 -10 -8 -8 -6 -6 -6 -5 -4 -4 -4 -3 -3 -2 -------- Run | Yrd Mat Sub Rec Scr Fac Ext Cet Fac Fac Upp Upp Res Tes Res Hostile Shots Fired 1338 | . 32 36 2 . 98 223 80 12 26 . 102 45 153 529 Missed 451 | . 9 10 . . 44 111 27 2 8 . 24 15 34 167 Hits 887 | . 23 26 2 . 54 112 53 10 18 . 78 30 119 362 Melee 13 | . . . . . . 5 . . . . . . 8 . Projectile 874 | . 23 26 2 . 54 107 53 10 18 . 78 30 111 362 AOE 5 | . . . 3 . . . . . 1 . . . . 1 Critical Strikes 54 | . . . . . 1 5 2 . 1 . 2 4 14 25 Actively Blocked 3 | . . . . . . . . . . . . . 1 2 Part Disruptions 3 | . . . . . . . . . . 1 . . . 2 Damage Taken 15080 | . 240 558 114 . 698 1521 1433 309 735 36 1189 425 1466 6356 Core 2199 | . 18 122 76 . 50 132 59 45 27 . 97 36 83 1454 Absorbed by Shields 4329 | . . . . . . 385 63 . 157 15 276 329 1046 2058 Redirected to Shielding 302 | . . . . . 78 23 . . . . . . 86 115 Ignored by Resistances 37 | . . . . . 26 . 11 . . . . . . . Regen/Repaired (Parts) 17 | . . . . . . 17 . . . . . . . . Core Remaining (%) 76 | 100 . . . 13 . . 71 95 . . 89 . 90 . Volleys Fired 249 | 6 6 13 . . 2 . 9 7 25 . 15 18 44 104 Largest 3 | 2 1 2 . . 1 . 2 3 3 . 3 2 2 2 Hottest 353 | 70 30 80 . . 50 . 115 150 210 . 340 334 353 201 Shots Fired 458 | 12 6 15 . . 3 . 17 21 52 3 41 35 74 179 Gun 295 | 12 . 2 . . . . 17 21 52 3 41 34 33 80 Cannon 137 | . . . . . . . . . . . . . 41 96 Launcher 26 | . 6 13 . . 3 . . . . . . 1 . 3 Special . | . . . . . . . . . . . . . . . Kinetic 109 | 6 . . . . . . 10 14 13 2 15 . . 49 Thermal 271 | 6 . 2 . . . . 7 7 34 1 26 34 74 80 Explosive 26 | . 6 13 . . 3 . . . . . . 1 . 3 Electromagnetic 52 | . . . . . . . . . 5 . . . . 47 Robot Hit Streak 17 | 6 . 9 . . . . 10 3 9 . 8 8 14 17 Robot Miss Streak 11 | 1 . 2 . . . . 1 2 3 2 7 11 2 3 Penetration Max 1 | . . . . . . . 1 . . . . . . 1 Secondary Targets 3 | . . . . . . . . . 2 . 1 . . . Max Gunslinging Chain 1 | . . . . . . . . . 1 . 1 . . . Shots Hit Robots 427 | 9 11 20 2 . 12 70 20 9 27 . 24 26 65 132 Core Hits 190 | 5 9 16 . . 3 21 9 5 11 . 7 17 30 57 Critical Kills 9 | . 2 1 . . . 2 1 2 . . . . . 1 Critical Parts Destroyed 24 | . 2 3 . . 2 6 1 1 1 . 2 . . 6 Critical Strikes 60 | . 4 4 . . 3 15 4 3 1 . 2 . 3 21 Burn 4 | . . . . . . . . . . . . . . 4 Destroy 16 | . . . . . . . 2 3 1 . 2 . . 8 Corrupt 4 | . . . . . . . . . . . . . . 4 Smash 19 | . 4 4 . . 2 8 1 . . . . . . . Sever 17 | . . . . . 1 7 1 . . . . . 3 5 Melee Attacks 283 | . 14 33 4 . 31 98 10 . . . . 8 35 50 Impact 121 | . 14 33 4 . 15 50 5 . . . . . . . Slashing 162 | . . . . . 16 48 5 . . . . 8 35 50 Piercing . | . . . . . . . . . . . . . . . Sneak Attacks 13 | . 1 . 1 . . 5 . . . . . 2 1 3 Combat Hostiles . | . . . . . . . . . . . . . . . Follow-up Attacks 31 | . . . . . 4 22 5 . . . . . . . Damage Inflicted 19074 | 93 829 1398 114 . 449 3249 835 304 1202 27 615 1328 2798 5833 Guns 5673 | 93 . 12 . . . . 467 281 874 27 615 626 898 1780 Cannons 2945 | . . . . . . . . . . . . . 957 1988 Explosions 3148 | . 339 913 . . . . . . 328 . . 311 . 1257 Melee 7285 | . 490 473 114 . 449 3249 368 . . . . 391 943 808 Ramming 23 | . . . . . . . . 23 . . . . . . Kinetic 2188 | 32 . . . . . . 367 189 257 . 227 . . 1116 Thermal 5861 | 61 . 12 . . . . 100 92 915 27 388 626 1855 1785 Explosive 2820 | . 339 913 . . . . . . . . . 311 . 1257 Electromagnetic 897 | . . . . . . . . . 30 . . . . 867 Impact 3076 | . 490 473 114 . 235 1582 182 . . . . . . . Slashing 4209 | . . . . . 214 1667 186 . . . . 391 943 808 Piercing . | . . . . . . . . . . . . . . . Highest Corruption 49 | . . . . . 3 8 8 . 6 6 6 . 4 49 Average Corruption 8 | . . . . . 3 3 8 . 5 6 3 . 3 19 Corruption Purged 8 | . . . . . . . . . . . 4 . 4 . Corruption Blocked . | . . . . . . . . . . . . . . . Effects 220 | . . . . . 7 26 24 . 6 23 29 . 13 92 Message Errors 49 | . . . . . . 4 5 . 2 6 9 . 4 19 Matter Fused 54 | . . . . . 1 7 7 . 2 4 9 . 4 20 Heat Flow Errors 25 | . . . . . . 4 5 . . 1 5 . . 10 Energy Discharges 21 | . . . . . . 5 3 . 1 1 3 . 3 5 Parts Rejected 6 | . . . . . 1 . . . . 1 . . . 4 Parts Fused 4 | . . . . . 1 . . . . 2 . . . 1 Data Loss (minor) 26 | . . . . . 3 5 1 . 1 3 1 . 2 10 Data Loss (major) 5 | . . . . . . . . . . 1 1 . . 3 Misfires 13 | . . . . . 1 . 3 . . 3 1 . . 5 Alerts 2 | . . . . . . 1 . . . 1 . . . . Misdirections 5 | . . . . . . . . . . . . . . 5 Weapon Failures 10 | . . . . . . . . . . . . . . 10 Overload Shots 8 | . . . . . . . . . . . 1 2 5 . Effects 1 | . . . . . . . . . . . . 1 . . Heat Surge 1 | . . . . . . . . . . . . 1 . . Overflow Damage 1799 | . 219 179 40 . 105 494 46 . 47 . . 221 148 300 Projectiles 40 | . . . . . . . . . . . . . . 40 Explosions 255 | . 27 37 . . 39 . . . 47 . . . . 105 Melee 1504 | . 192 142 40 . 66 494 46 . . . . 221 148 155 Knockbacks 13 | . 2 3 1 . 1 6 . . . . . . . . Impact 13 | . 2 3 1 . 1 6 . . . . . . . . Kinetic . | . . . . . . . . . . . . . . . Secondary . | . . . . . . . . . . . . . . . Self-Inflicted Damage 807 | . 6 26 . . 266 . . . 314 . . 19 . 176 Shots 20 | . 1 2 . . 9 . . . 3 . . 2 . 3 Rammed 3 | . . . . . . . . 3 . . . . . . Targets Rammed 3 | . . . . . . . . 3 . . . . . . Kicked . | . . . . . . . . . . . . . . . Crushed . | . . . . . . . . . . . . . . . Highest Temperature 311 | 80 . . . . 10 262 287 135 187 215 197 184 311 185 Average Temperature 80 | 30 . . . . 6 109 94 45 72 116 105 127 53 69 Received Heat Transfer 1712 | . 96 117 . . 153 383 202 72 51 . . 60 318 260 Effects 1 | . . . . . . . 1 . . . . . . . Energy Bleed 1 | . . . . . . . 1 . . . . . . . Siege Activations . | . . . . . . . . . . . . . . . Martial Activations . | . . . . . . . . . . . . . . . Shielding Activations . | . . . . . . . . . . . . . . . Robots Disrupted . | . . . . . . . . . . . . . . . Combat Hostiles . | . . . . . . . . . . . . . . . Robots Corrupted 23 | . 3 4 1 . 2 8 1 . . . . . . 4 Combat Hostiles 22 | . 3 4 1 . 2 7 1 . . . . . . 4 Parts Fried 30 | . 2 3 . . 4 11 . . . . . . . 10 Impact Corruptions 33 | . 7 5 2 . 4 14 1 . . . . . . . Robots Melted 1 | . . . . . . . . . . . . . 1 . Combat Hostiles 1 | . . . . . . . . . . . . . 1 . Parts Melted 16 | . . . . . . . . . 2 . 3 . 3 8 Heat Transferred 6883 | 185 . 37 . . . . 148 111 767 37 494 790 1939 2375 Parts Sabotaged . | . . . . . . . . . . . . . . . Parts Stolen . | . . . . . . . . . . . . . . . Parts Stripped . | . . . . . . . . . . . . . . . Power Chain Reactions . | . . . . . . . . . . . . . . . Alert | -11 -10 -10 -8 -8 -6 -6 -6 -5 -4 -4 -4 -3 -3 -2 ------- Run | Yrd Mat Sub Rec Scr Fac Ext Cet Fac Fac Upp Upp Res Tes Res Maximum Alert Level 3 | . . . . . . 3 2 2 1 . . . . 2 Low Security (%) 73 | 100 100 . 100 . 100 32 20 69 4 . . 100 100 76 Level 1 19 | . . . . . . 18 75 2 95 . . . . 22 Level 2 6 | . . . . . . 44 3 28 . . . . . 1 Level 3 . | . . . . . . 4 . . . . . . . . Level 4 . | . . . . . . . . . . . . . . . Level 5 . | . . . . . . . . . . . . . . . High Security . | . . . . . . . . . . . . . . . Max Security . | . . . . . . . . . . . . . . . Peak Influence 727 | 10 121 . 78 . 104 727 418 678 340 . . 150 134 656 Initial 396 | . . . 9 . . 30 396 124 301 . . . 3 49 Average 120 | 1 21 . 17 . 16 332 274 216 257 . . 25 40 103 Influence Increases 5794 | 15 310 155 102 . 399 1216 347 835 479 . 50 213 415 1258 Destroy 0b10 Robot/C 2720 | . 200 120 60 . 120 620 160 320 180 . 40 120 280 500 Destroy 0b10 Robot/NC 190 | 15 20 . 15 . 15 35 10 10 5 . . 10 . 55 Destroy Leader 434 | . 36 20 . . 40 86 . 52 30 . 10 10 30 120 Allied During Kill 958 | . . . 3 . 15 410 148 349 33 . . . . . Successful Hack 127 | . 9 . 24 . 8 31 9 . . . . 12 . 34 Disable Machine 315 | . . . . . 75 15 . 45 105 . . 15 30 30 Destroy Structure 705 | . 30 . . . 81 4 20 44 126 . . 46 30 324 Lose Combat Pursuer 345 | . 15 15 . . 45 15 . 15 . . . . 45 195 Influence Decreases 5138 | 15 201 244 122 . 335 571 833 442 785 310 50 207 333 690 Entered New Map 982 | . . 53 11 . . 34 313 99 315 115 . . 3 39 Time Decay 3192 | 15 201 161 111 . 198 437 350 262 380 195 30 187 320 345 Lost Part 516 | . . 30 . . 30 40 50 . 10 . 20 20 10 306 Lost Ally 448 | . . . . . 107 60 120 81 80 . . . . . Squads Dispatched 27 | . 1 . . . 4 5 . 4 2 . . 3 2 6 Investigation 4 | . 1 . . . . 3 . . . . . . . . Extermination 14 | . . . . . 3 . . 1 2 . . . 2 6 Reinforcement 8 | . . . . . 1 1 . 3 . . . 3 . . Assault 1 | . . . . . . 1 . . . . . . . . Garrison . | . . . . . . . . . . . . . . . Intercept . | . . . . . . . . . . . . . . . Searches Triggered . | . . . . . . . . . . . . . . . Construction Impeded 1 | . . . . . . . . 1 . . . . . . Haulers Reinforced 2 | . . . . . . . . 1 . . . 1 . . Active Scanning Responses . | . . . . . . . . . . . . . . . Cargo Convoy Interrupts 1 | . . . . . . . . 1 . . . . . . Stealth | -11 -10 -10 -8 -8 -6 -6 -6 -5 -4 -4 -4 -3 -3 -2 --------- Run | Yrd Mat Sub Rec Scr Fac Ext Cet Fac Fac Upp Upp Res Tes Res Distress Signals 12 | . 1 . . . . 3 2 1 . . . 4 . 1 Communications Jammed 58 | . . . . . . . . 6 1 . . 26 9 16 Distress Signals 56 | . . . . . . . . 6 . . . 26 8 16 Times Spotted 227 | . 15 19 2 . 11 41 10 22 10 1 2 19 23 52 Peak Tracking Total 12 | . 4 6 1 . 4 6 5 11 2 . 2 6 4 12 Tactical Retreats 17 | . 1 1 . . 2 1 . 1 . . . . 2 9 Traps | -11 -10 -10 -8 -8 -6 -6 -6 -5 -4 -4 -4 -3 -3 -2 ------- Run | Yrd Mat Sub Rec Scr Fac Ext Cet Fac Fac Upp Upp Res Tes Res Traps Triggered 8 | . 1 1 . . . 4 . . . 1 . 1 . . Indirectly . | . . . . . . . . . . . . . . . Trap Hack Attempts . | . . . . . . . . . . . . . . . Triggered . | . . . . . . . . . . . . . . . Disarmed . | . . . . . . . . . . . . . . . Reprogrammed . | . . . . . . . . . . . . . . . Reused . | . . . . . . . . . . . . . . . Traps Extracted . | . . . . . . . . . . . . . . . Installed 1 | . . 1 . . . . . . . . . . . . Triggered . | . . . . . . . . . . . . . . . Machines | -11 -10 -10 -8 -8 -6 -6 -6 -5 -4 -4 -4 -3 -3 -2 ---------- Run | Yrd Mat Sub Rec Scr Fac Ext Cet Fac Fac Upp Upp Res Tes Res Machines Disabled 22 | . . 1 . . 5 1 . 3 7 . . 1 2 2 Max in Single Turn 4 | . . 1 . . 4 1 . 1 3 . . 1 1 1 Garrison Access 1 | . . . . . . . . . . . . . . 1 Machines Repaired . | . . . . . . . . . . . . . . . Machines Dismantled . | . . . . . . . . . . . . . . . Machines Sabotaged . | . . . . . . . . . . . . . . . Overloaded Fab Kills . | . . . . . . . . . . . . . . . Hacking | -11 -10 -10 -8 -8 -6 -6 -6 -5 -4 -4 -4 -3 -3 -2 --------- Run | Yrd Mat Sub Rec Scr Fac Ext Cet Fac Fac Upp Upp Res Tes Res Machines Accessed 42 | . 4 1 3 2 5 12 3 1 2 2 . 2 2 3 Terminals 30 | . 3 . 3 . 5 11 3 . 1 1 . 1 1 1 Fabricators . | . . . . . . . . . . . . . . . Repair Stations 1 | . . . . . . 1 . . . . . . . . Recycling Units 2 | . 1 . . . . . . . 1 . . . . . Scanalyzers 4 | . . . . . . . . 1 . . . 1 1 1 Garrison Access 1 | . . . . . . . . . . . . . . 1 Total Hacks 76 | . 10 1 7 2 7 21 6 2 7 2 . 3 3 5 Successful 42 | . 5 1 5 2 2 10 2 1 6 2 . 1 2 3 Failed 34 | . 5 . 2 . 5 11 4 1 1 . . 2 1 2 Catastrophic 11 | . 1 . 1 . 2 3 2 . . . . . 1 1 Database Lockouts . | . . . . . . . . . . . . . . . Manual 28 | . 5 . 4 . 6 8 1 . 1 . . 1 1 1 Terminals 58 | . 9 . 7 . 7 20 6 . 4 1 . 1 1 2 Fabricators . | . . . . . . . . . . . . . . . Repair Stations 1 | . . . . . . 1 . . . . . . . . Recycling Units 4 | . 1 . . . . . . . 3 . . . . . Scanalyzers 7 | . . . . . . . . 2 . . . 2 2 1 Garrison Access 2 | . . . . . . . . . . . . . . 2 Terminal Hacks 21 | . 1 1 2 2 1 7 2 . 2 2 . . . 1 Record 6 | . . . . 1 . 2 1 . . 1 . . . 1 Robot Analysis 2 | . 1 . . . . 1 . . . . . . . . Prototype ID Bank 1 | . . . 1 . . . . . . . . . . . Open Door 7 | . . . . . 1 4 1 . . 1 . . . . Alert Level 1 | . . . . . . . . . 1 . . . . . Registered Components 1 | . . . 1 . . . . . . . . . . . Zone Layout 1 | . . . . . . . . . 1 . . . . . Proto ID Catalog 2 | . . 1 . 1 . . . . . . . . . . Fabricator Hacks . | . . . . . . . . . . . . . . . Repair Station Hacks . | . . . . . . . . . . . . . . . Recycling Unit Hacks 4 | . 1 . . . . . . . 3 . . . . . Process 1 | . . . . . . . . . 1 . . . . . Report Inventory 2 | . 1 . . . . . . . 1 . . . . . Retrieve Matter 1 | . . . . . . . . . 1 . . . . . Scanalyzer 5 | . . . . . . . . 1 . . . 1 2 1 Retrieve Study 5 | . . . . . . . . 1 . . . 1 2 1 Garrison Access Hacks 1 | . . . . . . . . . . . . . . 1 Seal Access 1 | . . . . . . . . . . . . . . 1 Unauthorized Hacks 11 | . 3 . 3 . 1 3 . . 1 . . . . . Terminals 10 | . 3 . 3 . 1 2 . . 1 . . . . . Botnet 10 | . 3 . 3 . 1 2 . . 1 . . . . . Fabricators . | . . . . . . . . . . . . . . . Repair Stations 1 | . . . . . . 1 . . . . . . . . Patch 1 | . . . . . . 1 . . . . . . . . Recycling Units . | . . . . . . . . . . . . . . . Scanalyzers . | . . . . . . . . . . . . . . . Garrison Access . | . . . . . . . . . . . . . . . Data Cores Recovered 2 | . . . . . 1 1 . . . . . . . . Used . | . . . . . . . . . . . . . . . Hacking Detections 30 | . 3 . 3 . 5 8 4 . 1 . . 2 2 2 Full Trace Events 1 | . . . . . . 1 . . . . . . . . Feedback Events . | . . . . . . . . . . . . . . . Feedback Blocked . | . . . . . . . . . . . . . . . Robot Schematics Acquired . | . . . . . . . . . . . . . . . Robots Built . | . . . . . . . . . . . . . . . Authchips . | . . . . . . . . . . . . . . . Time . | . . . . . . . . . . . . . . . Total Robot Build Rating . | . . . . . . . . . . . . . . . Part Schematics Acquired . | . . . . . . . . . . . . . . . Parts Built . | . . . . . . . . . . . . . . . Authchips . | . . . . . . . . . . . . . . . Time . | . . . . . . . . . . . . . . . Total Part Build Rating . | . . . . . . . . . . . . . . . Part Studies Acquired 5 | . . . . . . . . 1 . . . 1 2 1 Parts Repaired . | . . . . . . . . . . . . . . . Time . | . . . . . . . . . . . . . . . Parts Recycled . | . . . . . . . . . . . . . . . Recycled Matter 52 | . . . . . . . . . 52 . . . . . Retrieved Matter 52 | . . . . . . . . . 52 . . . . . Retrieved Components . | . . . . . . . . . . . . . . . Parts Scanalyzed . | . . . . . . . . . . . . . . . Part Schematics Acquired . | . . . . . . . . . . . . . . . Parts Damaged . | . . . . . . . . . . . . . . . Bothacking | -11 -10 -10 -8 -8 -6 -6 -6 -5 -4 -4 -4 -3 -3 -2 ------------ Run | Yrd Mat Sub Rec Scr Fac Ext Cet Fac Fac Upp Upp Res Tes Res Used RIF Installer . | . . . . . . . . . . . . . . . Robots Hacked . | . . . . . . . . . . . . . . . Non-combat . | . . . . . . . . . . . . . . . Combat . | . . . . . . . . . . . . . . . Robot Hacks Applied . | . . . . . . . . . . . . . . . Relay Couplers Released . | . . . . . . . . . . . . . . . Fabnet Peak Effective % . | . . . . . . . . . . . . . . . Robots Rewired 18 | . . . 8 . . 10 . . . . . . . . Allies Hacked 2 | . . . . . 1 . . . 1 . . . . . Hacks Repelled . | . . . . . . . . . . . . . . . Allies | -11 -10 -10 -8 -8 -6 -6 -6 -5 -4 -4 -4 -3 -3 -2 -------- Run | Yrd Mat Sub Rec Scr Fac Ext Cet Fac Fac Upp Upp Res Tes Res Total Allies 34 | . . . 8 . . 16 5 . 5 . . . . . Largest Group 13 | . . . 8 8 8 13 13 10 6 . . . . . Highest-Rated Group 712 | . . . 140 140 140 478 712 622 326 . . . . . Highest-Rated Ally 159 | . . . 34 34 34 159 159 96 96 . . . . . Initial UFD Resources 35 | . . . . . 23 23 23 25 29 29 29 31 31 35 Total Orders 20 | . . . . 2 3 . 6 5 1 3 . . . . STAY 9 | . . . . 1 2 . 3 2 1 . . . . . FOLLOW 7 | . . . . 1 1 . 3 2 . . . . . . EXPLORE 3 | . . . . . . . . 1 . 2 . . . . RETURN 1 | . . . . . . . . . . 1 . . . . Ally Attacks 347 | . . . 1 . 18 118 82 89 39 . . . . . Total Damage 10586 | . . . 193 . 675 3301 2459 2967 991 . . . . . Kills 52 | . . . 2 . 5 17 6 18 4 . . . . . Allies Corrupted 1 | . . . . . . . . . 1 . . . . . Allies Melted . | . . . . . . . . . . . . . . . Intel | -11 -10 -10 -8 -8 -6 -6 -6 -5 -4 -4 -4 -3 -3 -2 ------- Run | Yrd Mat Sub Rec Scr Fac Ext Cet Fac Fac Upp Upp Res Tes Res Active Infowar (turns) 12632 | 34 1300 . . . 1236 1100 346 724 884 803 1513 793 1259 2640 Optics 709 | . . . . . . . 346 363 . . . . . . Sensors 6468 | . . . . . . . . 193 884 803 1513 793 763 1519 Terrain 2335 | . . . . . 1235 1100 . . . . . . . . Seismic 1334 | 34 1300 . . . . . . . . . . . . . Triangulation 957 | . . . . . 957 . . . . . . . . . Jamming 6559 | . . . . . . . . 168 884 803 78 727 1259 2640 Robot Analysis Total 2 | . 1 . . . . 1 . . . . . . . . Derelict Logs Recovered 8 | . . 2 . 3 . . . . . 1 2 . . . Drone Launches 7 | . . . . . . . . 1 . 6 . . . . Drone Recoveries 6 | . . . . . . . . . . 6 . . . . Exploration | -11 -10 -10 -8 -8 -6 -6 -6 -5 -4 -4 -4 -3 -3 -2 ------------- Run | Yrd Mat Sub Rec Scr Fac Ext Cet Fac Fac Upp Upp Res Tes Res Turns Passed 18229 | 147 1300 2056 358 2279 1453 1180 784 730 884 803 1513 810 1259 2673 Spaces Moved 9103 | 72 332 1160 203 1705 854 645 474 313 423 232 910 419 381 980 Core 67 | 1 . . . . . . . . . . . . . 66 Treads 4298 | 71 332 85 . . . . 251 313 390 232 910 419 381 914 Legs 3811 | . . 181 203 1705 854 645 223 . . . . . . . Wheels 927 | . . 894 . . . . . . 33 . . . . . Hover . | . . . . . . . . . . . . . . . Flight . | . . . . . . . . . . . . . . . Fastest Speed 50 | 50 160 110 130 130 123 123 123 160 80 160 160 160 160 50 Average Speed 142 | 158 160 119 130 130 133 123 142 160 154 160 160 160 160 165 Slowest Speed 250 | 160 160 240 130 130 200 125 160 160 160 160 160 240 160 250 Overloaded Moves . | . . . . . . . . . . . . . . . Propulsion Burnouts . | . . . . . . . . . . . . . . . Robots Hopped . | . . . . . . . . . . . . . . . Potential Cave-ins 5 | . . . . . 3 . . . . . . . 2 . Cave-ins Triggered . | . . . . . . . . . . . . . . . Exploration Rate (%) 44 | 5 50 49 40 88 13 79 93 9 11 97 60 10 42 16 Regions Visited 14 Branch Regions 8 Pre-discovered Areas 3 | . . . . . . . . . . 1 2 . . . Known Exits Taken 12 | . . 1 1 1 1 1 1 1 1 1 1 1 1 . Unknown Exits Taken 2 | 1 1 . . . . . . . . . . . . . Scrap Searched 13 | . . 5 . 4 . . . . . 2 2 . . . Spaces Dug 159 | . 1 6 . . 88 . . . 4 . . . 19 41 Terrain Destroyed 537 | . 35 78 . . 126 . 1 13 36 2 8 26 24 188 Melee 50 | . 1 6 . . 10 . . . . . . . 8 25 Projectile 78 | . . . . . . . 1 13 8 2 8 3 16 27 AOE 409 | . 34 72 . . 116 . . . 28 . . 23 . 136 Terrain Rammed . | . . . . . . . . . . . . . . . Walls Destroyed . | . . . . . . . . . . . . . . . Machines Disabled . | . . . . . . . . . . . . . . . Actions | -11 -10 -10 -8 -8 -6 -6 -6 -5 -4 -4 -4 -3 -3 -2 --------- Run | Yrd Mat Sub Rec Scr Fac Ext Cet Fac Fac Upp Upp Res Tes Res Total 13519 | 91 1066 1764 292 1773 1124 927 563 526 614 664 936 511 903 1765 Wait 3318 | 2 696 529 20 39 194 92 36 178 131 422 2 23 399 555 Move 9089 | 71 331 1159 202 1704 853 644 473 312 422 231 909 418 380 980 Hop . | . . . . . . . . . . . . . . . Pick Up 113 | 5 7 11 1 14 9 11 6 8 10 3 1 11 6 10 Fast Attach 75 | 7 . 2 . . 8 4 10 3 4 2 2 7 9 17 Attach 73 | . . 3 2 . 10 5 6 3 6 . 3 7 8 20 Detach 17 | . . . . . 3 . 1 . 1 . 3 1 4 4 Swap 72 | . 8 5 1 2 11 10 2 3 4 1 . 4 8 13 Drop 125 | . 4 8 . 14 9 15 15 9 10 4 1 14 10 12 Fire 249 | 6 6 13 . . 2 . 9 7 25 . 15 18 44 104 Melee 242 | . 14 33 4 . 25 68 5 . . . . 8 35 50 Ram . | . . . . . . . . . . . . . . . Kick . | . . . . . . . . . . . . . . . Crush 3 | . . . . . . . . 3 . . . . . . Escape Stasis . | . . . . . . . . . . . . . . . Rewire 141 | . . . 62 . . 78 . . 1 . . . . . Trap 1 | . . 1 . . . . . . . . . . . . Miscellaneous 1 | . . . . . . . . . . 1 . . . . Route ------- -11/Scrapyard -10/Materials (discovered 3 exits: [*Min x2] / *Sub) -10/Subcaves (discovered 2 exits: *Mat / *Rec) -8/Recycling -8/Scraptown (discovered 2 exits: *Fac x2) -6/Factory -6/Extension (discovered 3 exits: *Fac x2 / *Cet) -6/Cetus (discovered 3 exits: *Fac x2 / [*Arc]) -5/Factory -4/Factory -4/Upper Caves -4/Upper Caves -3/Research -3/Testing -2/Research History --------- Turn | Location | Event 33 | -11/Scrapyard | Discovered new exit (range 16) 148 | -11/Scrapyard | Entered Materials 312 | -10/Materials | Build established: Mutant 1055 | -10/Materials | Discovered new exit (range 11) 1311 | -10/Materials | Discovered new exit (range 7) 1312 | -10/Materials | Discovered new exit (range 10) 1448 | -10/Materials | Entered Subcaves 1449 | -10/Subcaves | Approached by a straggling Scientist 1676 | -10/Subcaves | Ambushed by Subdweller buried in earth 1702 | -10/Subcaves | Destroyed 8 combat bots 1710 | -10/Subcaves | Lost 3 parts (1p1n1w) 2189 | -10/Subcaves | Learned location of 1 exit from Materials 2234 | -10/Subcaves | Shifting Twisted Machinery released Sub. Optics 2248 | -10/Subcaves | Shifting Twisted Machinery released Battle Rifle 2864 | -10/Subcaves | Core integrity fell below 50% 2875 | -10/Subcaves | Identified exit to Recycling 2960 | -10/Subcaves | Shifting Twisted Machinery released Sub. Beam Cannon 2961 | -10/Subcaves | Discovered new exit (range 9) 2974 | -10/Subcaves | Shifting Twisted Machinery released Ripper 2974 | -10/Subcaves | Identified exit to Materials 3235 | -10/Subcaves | Visited 4L-MR0's lab 3250 | -10/Subcaves | Found Cargo Legs 3252 | -10/Subcaves | Attached Cargo Legs, gained temporary slots: Utility x2 3459 | -10/Subcaves | A swath of the cavern ceiling suddenly collapsed 3504 | -10/Subcaves | Entered Recycling 3596 | -8/Recycling | Core integrity fell below 20% 3810 | -8/Recycling | Scanned before Scraplab entrance 3829 | -8/Recycling | Entered Scraplab 3839 | -8/Recycling | Discovered new exit (range 2) 3839 | -8/Recycling | Identified exit to Scraptown 3862 | -8/Recycling | Entered Scraptown 3862 | -8/Scraptown | Accompanied by 8 allies 3933 | -8/Scraptown | Heard Great Nut preacher, LISTEN AND RECITE! 3943 | -8/Scraptown | Build established: Commander-Mutant 3950 | -8/Scraptown | Visited UFD Registry 3951 | -8/Scraptown | Registered with UFD as "Armortail" 4054 | -8/Scraptown | Discovered new exit (range 3) 4176 | -8/Scraptown | Visited Research Penetration Think Tank 4207 | -8/Scraptown | Visited Derelict Rescue Squad 4216 | -8/Scraptown | Found DRS Beacon 4244 | -8/Scraptown | Visited Science Guys 4331 | -8/Scraptown | Visited Junk Repository 4350 | -8/Scraptown | Visited SPCMW 4412 | -8/Scraptown | Scanned Subdweller tech in exchange for log data 4415 | -8/Scraptown | Learned Research terminal intel 4417 | -8/Scraptown | Learned Research emergency access door positions 4418 | -8/Scraptown | Learned 8 Factory zone layouts 4431 | -8/Scraptown | Discovered new exit (range 11) 4462 | -8/Scraptown | Guru changed UFD alias to "Scrapnade" 4521 | -8/Scraptown | Identified exit to Factory 5104 | -8/Scraptown | Visited IN-MT5's Study 5164 | -8/Scraptown | Visited The Evicted 5194 | -8/Scraptown | Visited Red Mages 5449 | -8/Scraptown | Visited Observation Area 5466 | -8/Scraptown | Visited Cartography Club 5502 | -8/Scraptown | Found Surveybot 17 Chip 5732 | -8/Scraptown | Visited Infowarlord's Domain 5763 | -8/Scraptown | Visited Scrapoid Pod Storage 5771 | -8/Scraptown | Found Scrapoid Pod 5791 | -8/Scraptown | Visited Chapter 10 5812 | -8/Scraptown | Visited Scrap Suit Storage 5830 | -8/Scraptown | Visited LU-1G1's Boring Crew 6061 | -8/Scraptown | Met Optimus 6061 | -8/Scraptown | Accepted into 0bPrime 6141 | -8/Scraptown | Entered Factory 6141 | -6/Factory | Accompanied by 8 allies 6141 | -6/Factory | Evolved 8 slots: Propulsion x2, Utility x5, Weapon x1 6475 | -6/Factory | Build established: Commander-Gladiator 6998 | -6/Factory | Found Prototype Launcher 6998 | -6/Factory | Identified Scatter Rocket Array 7472 | -6/Factory | Discovered new exit (range 15) 7590 | -6/Factory | Identified exit to Extension 7594 | -6/Factory | Entered Extension 7720 | -6/Extension | Rescued A7 7793 | -6/Extension | Rescued a captive Derelict 7800 | -6/Extension | Rescued a captive Derelict 7844 | -6/Extension | Build established: Derelict-Gladiator 8055 | -6/Extension | Spotted B-75 Beast 8077 | -6/Extension | Spotted B-75 Beast 8087 | -6/Extension | Discovered new exit (range 14) 8094 | -6/Extension | Allies destroyed B-75 Beast 8108 | -6/Extension | Destroyed B-75 Beast 8312 | -6/Extension | Build established: Commander-Gladiator 8386 | -6/Extension | Rescued a captive Derelict 8387 | -6/Extension | Rescued a captive Derelict 8553 | -6/Extension | Rescued a captive Derelict 8644 | -6/Extension | First assault squad dispatched 8660 | -6/Extension | Discovered new exit (range 13) 8667 | -6/Extension | Discovered new exit (range 15) 8726 | -6/Extension | Identified exit to Cetus 8729 | -6/Extension | Identified exit to Factory 8774 | -6/Extension | Entered Cetus 8774 | -6/Cetus | Accompanied by 12 allies (A7) 8779 | -6/Cetus | Acquired a Cetus Manufacturing Module code from A7 8793 | -6/Cetus | Spotted Cetus Guard 8793 | -6/Cetus | Spotted Cetus Guard 8795 | -6/Cetus | Spotted Cetus Guard 8797 | -6/Cetus | Spotted Cetus Guard 8804 | -6/Cetus | Extracted ID and sensor layout for unrecognized location from A7's data core 8821 | -6/Cetus | Destroyed Cetus Guard 8821 | -6/Cetus | Allies destroyed Cetus Guard 8826 | -6/Cetus | Destroyed Cetus Guard 8829 | -6/Cetus | Allies destroyed Cetus Guard 8846 | -6/Cetus | Lost 5 parts (1p4u) 8854 | -6/Cetus | Lost 4 allies 8887 | -6/Cetus | Started Cetus Manufacturing Module 8912 | -6/Cetus | Manufactured an Enhanced Grunt 8937 | -6/Cetus | Manufactured an Enhanced Grunt 8962 | -6/Cetus | Manufactured an Enhanced Grunt 8987 | -6/Cetus | Manufactured an Enhanced Grunt 9012 | -6/Cetus | Manufactured an Enhanced Grunt 9254 | -6/Cetus | Discovered exit to Factory (range 18) 9388 | -6/Cetus | Discovered new exit (range 17) 9404 | -6/Cetus | Build established: Commander-Mutant 9446 | -6/Cetus | Spotted Cetus Guard 9447 | -6/Cetus | Spotted Cetus Guard 9453 | -6/Cetus | Spotted Cetus Guard 9453 | -6/Cetus | Spotted Cetus Guard 9463 | -6/Cetus | Destroyed Cetus Guard 9463 | -6/Cetus | Destroyed Cetus Guard 9475 | -6/Cetus | Discovered exit to Factory (range 17) 9478 | -6/Cetus | Allies destroyed Cetus Guard 9479 | -6/Cetus | Allies destroyed Cetus Guard 9493 | -6/Cetus | Met Revision 17 9524 | -6/Cetus | Security sweep announced 9558 | -6/Cetus | Entered Factory 9558 | -5/Factory | Accompanied by 10 allies 9558 | -5/Factory | Evolved 2 slots: Power x1, Utility x1 9777 | -5/Factory | Build established: Commander-Bomber 10151 | -5/Factory | Lost 3 allies 10154 | -5/Factory | Discovered new exit (range 11) 10264 | -5/Factory | Cargo convoy interrupted 10279 | -5/Factory | Identified exit to Factory 10288 | -5/Factory | Entered another Factory area 10288 | -4/Factory | Accompanied by 1 ally 10288 | -4/Factory | Evolved 2 slots: Utility x2 10405 | -4/Factory | Build established: Scavenger-Bomber 10641 | -4/Factory | Scrapoid Pod released 04F05-D (x5) 10822 | -4/Factory | P-70 Sage assimilated allied 04F02-D 10830 | -4/Factory | P-70 Sage assimilated allied 04F04-D 11114 | -4/Factory | Discovered new exit (range 15) 11145 | -4/Factory | Identified exit to Upper Caves 11172 | -4/Factory | Entered Upper Caves 11200 | -4/Upper Caves | Activated DRS Beacon 11335 | -4/Upper Caves | Discovered new exit (range 110) 11705 | -4/Upper Caves | Learned location of Armory (-3) 11961 | -4/Upper Caves | Identified exit to Upper Caves 11975 | -4/Upper Caves | Entered another Upper Caves area 12063 | -4/Upper Caves | Lost 3 parts (1p2u) 12371 | -4/Upper Caves | Learned location of Quarantine (-2) 12439 | -4/Upper Caves | Encountered a Warlord checkpoint 12748 | -4/Upper Caves | Discovered new exit (range 4) 12753 | -4/Upper Caves | Identified exit to Research 12771 | -4/Upper Caves | Build established: Bomber 13488 | -4/Upper Caves | Entered Research 13488 | -3/Research | Evolved 2 slots: Power x1, Utility x1 13490 | -3/Research | Loaded intel: 22 terminal locations 13579 | -3/Research | Found Exp. Signal Interpreter 13688 | -3/Research | Revision forces began assault on 0b10 13717 | -3/Research | Met up with Revision 17++ 13831 | -3/Research | Discovered new exit (range 5) 13849 | -3/Research | Identified exit to Testing 13879 | -3/Research | Build established: Mutant 14188 | -3/Research | Research terminal network offline 14298 | -3/Research | Entered Testing 14388 | -3/Testing | Build established: Scavenger-Mutant 14641 | -3/Testing | Found Prototype Device 14641 | -3/Testing | Identified Exp. Thermal Defense Suite 15249 | -3/Testing | Found Prototype Launcher 15250 | -3/Testing | Identified Tactical Quantum Warhead 15541 | -3/Testing | Discovered new exit (range 11) 15556 | -3/Testing | Identified exit to Research 15557 | -3/Testing | Entered Research 15557 | -2/Research | Evolved 2 slots: Power x1, Utility x1 15649 | -2/Research | Found Fusion Bomb Launcher 15857 | -2/Research | Build established: Generator-Mutant 17089 | -2/Research | System corruption reached 10% 17115 | -2/Research | Lost 3 parts (1p2u) 17418 | -2/Research | Lost 5 parts (2p2n1w) 17673 | -2/Research | System corruption reached 30% 17700 | -2/Research | Build established: Scavenger-Mutant 17723 | -2/Research | Lost 4 parts (1p2u1w) 17985 | -2/Research | Spotted B-90 Cyclops 18105 | -2/Research | Lost 9 parts (1p1n5u2w) 18195 | -2/Research | Core integrity fell below 50% 18197 | -2/Research | Released all parts (9) 18215 | -2/Research | Core integrity fell below 20% 18226 | -2/Research | Lost 6 parts (3p1n1u1w) 18230 | -2/Research | Destroyed by S-43 Plague with Heavy Machine Gun Last Messages --------------- 18198_ Penetrated by Slug. 18199_ U-05 Engineer lays Concrete. 18201_ N%SN/5O/JGX|%CVT>YSGDTR|1O 18201_ The unstable cave ceiling collapses. 18202_ Slug penetrates Wall. 18204_ U-05 Engineer lays Concrete. 18205_ K-01 Serf destroyed. 18205_ Slug penetrates Wall. 18205_ U-05 Engineer builds a Wall. 18213_ K-01 Serf destroyed. 18215_ K-01 Serf collects debris. 18216_ Acquired 14 matter. 18219_ 1QL HJJMGPSCQ2 J5O4LYC1B 18220_ C-30 ARC bursts open, deploying its payload. 18220_ S-43 Plague unfolds itself. 18221_ Penetrated by Slug. 18221_ Slug penetrates K-01 Serf. 18221_ K-01 Serf destroyed. 18222_ K-01 Serf collects debris. Map ----- +----------------------------------------------------+ | ?????????????????????????????????????????????????? | | ?????????????????????????????????????????????????? | | ?????????????????????????????????????????????????? | | ?????????????????????????????????????????????????? | | ?????????????????????????????????????????????????? | | ?????????????????????????????????????????????????? | | ?????????????????????????????????????????????????? | | ?????????????????????????????????????????????????? | | ?????????????????????????????????????????????????? | | ?????????????????????????????????????????????????? | | ?????????????????????????????????????????????????? | | ?????????????????????????????????????????????????# | | ?????????????????????????????????????????????????# | | ?????????????????????????????????################# | | ???????????????????????????????# # =! | | ???????????????????????????????# # !! | | ???????????????????????????????# """ !# !! | | ???????????????????????????????# """ # | | ???????????????????????????????# """ # | | ???????????????????????????????# # | | ???????????????????????????????# #? | | ???????????????????????????????# % #??? | | ???????????#+#############+#############+######+## | | ?????????? u k !! | | ?????????? p ss ss p%==* | | ?????????? t @ Y % | | ?????????????????##+######+#############+########+ | | ????????????????????????# ????????? ???? | | ????????????????????????# #??????? # | | ????????????????????????# #??????# # " | | ????????????????????????# #??????# # " | | ????????????????????????# = #??????#""" # " | | ????????????????????????# #???????"Y # " | | ????????????????????????# #??????#""" ]] # " | | ????????????????????????# #??????? ]] # ? | | ????????????????????????# #???????? ] # ? | | ????????????????????????######?????????##########? | | ?????????????????????????????????????????????????? | | ?????????????????????????????????????????????????? | | ?????????????????????????????????????????????????? | | ?????????????????????????????????????????????????? | | ?????????????????????????????????????????????????? | | ?????????????????????????????????????????????????? | | ?????????????????????????????????????????????????? | | ?????????????????????????????????????????????????? | | ?????????????????????????????????????????????????? | | ?????????????????????????????????????????????????? | | ?????????????????????????????????????????????????? | | ?????????????????????????????????????????????????? | | ?????????????????????????????????????????????????? | +----------------------------------------------------+ Best States ------------- Heat Dissipation 156 Coolant Potential 80 Energy Generation 80 Energy Capacity 1310 Matter Stores 300 Matter Capacity 300 Sight Range 18 Robot Scan Range 18 Terrain Scan Range 16 Terrain Scan Density 1210 Jamming Range 14 Additional Mass Support 16 Armor Coverage 900 Resistance: TH 10 Power Shielding 66 Propulsion Shielding 66 Weapon Shielding 66 Point Defense Rating 160 Phase Shifting 5 Evasion (%) 70 Targeting Accuracy 16 Melee Accuracy 8 Target Analysis 8 Recoil Reduction 4 Offensive Hacking 12 Defensive Hacking 12 Item Schematics ----------------- None Robot Schematics ------------------ None Fabricated ------------ Nothing Repaired ---------- Nothing Studied --------- Lgt. Fission Core | -5/Factory | Hacked Quantum Reactor | -3/Research | Hacked HERF Cannon | -3/Testing | Hacked Imp. Heavy Treads | -3/Testing | Hacked Lgt. Quantum Reactor | -2/Research | Hacked Alien Tech Used ----------------- None Achievements -------------- Deadly Force More Power To You Prison Break Project G-00 Revising The Future Revolutionary Research Challenges ------------ None Game ------ Seed HybridHardenedBoregun Manual? 0 Play Time 02:26:35 Cumulative 78.7 hours Start 2026.02.26 @ 14:44:11 End 2026.02.26 @ 17:31:41 Sessions 4 Manual Loads 0 Difficulty Rogue Special Mode None Game No. 77 Rogue 77 Adventurer 0 Explorer 0 Win Type - Total 0 Types 0/0/0/0/0/0/0/0/0/0 Lore% 58 Gallery% 45 Achievement% 37 Wizard Run 0 Options --------- Layout 1 ASCII 0 Keyboard 0 Movement Mouse Keybinds 0 Fullscreen 1 Font 24/Swanston Map View 50x35 Zoom Use 0% Tactical HUD 1 Map Filters NONE Filters NONE Steam 1 RUN: c4d651bc-4590-4c53-a326-acbded026824